bitfinex/quotes_SOLUSD_20240917
["timestamp","ask_amount","ask_price","bid_price","bid_amount"]
[1726580890641,7.5753,132.01,131.94,18.9471]
[1726580890843,7.5753,132.01,131.97,7.5774]
[1726580891263,2.01951361,132.02,131.94,18.9471]
[1726580891446,6.1758,131.99,131.95,7.5785]
[1726580891651,6.1758,131.99,131.96,18.9441]
[1726580891960,6.1758,131.99,131.97,7.5773]
[1726580892553,6.2211191,131.99,131.97,7.5773]
[1726580893842,0.0453191,131.99,131.98,7.5769]
[1726580894250,0.0453191,131.99,131.98,31.353784]
[1726580895937,0.0453191,131.99,131.98,51.604764]
[1726580896160,0.0453191,131.99,131.98,82.52463982]
[1726580896943,0.0453191,131.99,131.98,90.73818476]
[1726580897258,0.3613867,132.04,131.98,90.73818476]
[1726580897259,0.3613867,132.04,132.03,26.509]
[1726580897554,0.3613867,132.04,132.03,70.285884]
[1726580899233,0.3613867,132.04,132.03,70.285884]
[1726580901155,0.3613867,132.04,132.01,7.575]
[1726580901642,6.1932,132.03,132.0,18.939]
[1726580902151,13.7672,132.03,132.0,18.939]
[1726580902551,6.1932,132.03,132.0,18.939]
[1726580902959,6.1932,132.03,132.01,7.5747]
[1726580903560,6.1932,132.03,132.0,18.939]
[1726580903781,6.1932,132.03,132.0,7.5757]
[1726580904861,6.1932,132.03,131.96,20.0]
[1726580905862,6.1932,132.03,131.98,18.9418]
[1726580906167,6.1932,132.03,131.96,7.5779]
[1726580906168,7.5761,132.0,131.96,7.5779]
[1726580906375,7.5761,132.0,131.95,26.524]
[1726580906664,2.14484822,132.02,131.95,18.9456]
[1726580906665,9.47045775,131.99,131.95,18.9456]
[1726580906866,15.3427,131.99,131.93,7.5795]
[1726580907051,6.5258,131.98,131.91,7.5808]
[1726580907252,6.5258,131.98,131.9,10.27188939]
[1726580907253,7.5797,131.94,131.9,10.27188939]
[1726580907766,7.5791,131.95,131.9,10.27188939]
[1726580908067,6.5258,131.98,131.92,7.5798]
[1726580908068,7.5779,131.97,131.92,7.5798]
[1726580908258,1.89480345,131.96,131.92,7.5798]
[1726580908451,9.47290345,131.96,131.91,26.532]
[1726580908765,2.14584683,131.95,131.9,17.85328939]
[1726580908956,7.5792,131.94,131.9,10.27188939]
[1726580909162,7.82968,131.95,131.9,10.27188939]
[1726580909477,7.578,131.96,131.9,10.27188939]
[1726580909771,7.578,131.96,131.9,17.85328939]
[1726580909965,7.578,131.96,131.91,7.5808]
[1726580910556,0.12549,131.97,131.93,7.5792]
[1726580910763,0.12549,131.97,131.92,18.9499]
[1726580911299,7.70309,131.97,131.92,18.9499]
[1726580911471,0.12549,131.97,131.92,18.9499]
[1726580911652,9.59765158,131.97,131.92,26.5302]
[1726580911859,7.5786,131.95,131.91,31.357684]
[1726580912373,7.5786,131.95,131.9,17.85318939]
[1726580912549,9.47420147,131.94,131.9,10.27188939]
[1726580912751,7.5793,131.94,131.9,10.27188939]
[1726580913252,7.5793,131.94,131.9,17.85318939]
[1726580913673,7.5786,131.95,131.91,7.5808]
[1726580913875,7.5782,131.96,131.91,7.5808]
[1726580914177,9.47307607,131.96,131.91,7.5808]
[1726580914375,1.89487787,131.95,131.9,10.27188939]
[1726580914787,1.89487787,131.95,131.89,26.5365]
[1726580915283,7.5799,131.93,131.89,26.5365]
[1726580915575,7.5792,131.94,131.9,7.5814]
[1726580915780,7.5787,131.95,131.9,7.5814]
[1726580915954,7.5782,131.96,131.91,7.5809]
[1726580916156,1.89476465,131.95,131.9,7.5813]
[1726580916484,7.5796,131.94,131.89,26.5365]
[1726580916806,7.5796,131.94,131.9,7.5813]
[1726580917077,20.25098,131.97,131.89,18.9546]
[1726580917256,1.89509411,131.96,131.89,18.9546]
[1726580917459,20.25098,131.97,131.89,18.9546]
[1726580917671,0.25098,131.95,131.89,18.9546]
[1726580917847,0.12549,131.95,131.89,18.9546]
[1726580918051,7.5802,131.93,131.89,26.5365]
[1726580918669,7.5789,131.95,131.89,18.9546]
[1726580918875,7.5789,131.95,131.9,7.5813]
[1726580919173,7.5789,131.95,131.91,7.5807]
[1726580919378,7.5792,131.94,131.9,7.5814]
[1726580920066,7.5787,131.95,131.9,7.5814]
[1726580920371,7.5787,131.95,131.91,7.5807]
[1726580921254,7.5776,131.97,131.93,7.5797]
[1726580921760,6.5258,131.98,131.95,7.5785]
[1726580922859,6.6154286,131.98,131.95,7.5785]
[1726580925467,6.6154286,131.98,131.96,7.578]
[1726580926301,6.6154286,131.98,131.95,26.5247]
[1726580926982,16.08704209,131.98,131.94,7.5789]
[1726580927367,7.5775,131.97,131.94,7.5789]
[1726580927880,7.5775,131.97,131.93,7.5795]
[1726580928962,7.5775,131.97,131.94,7.5791]
[1726580929160,14.1925286,131.98,131.94,7.5791]
[1726580929469,6.6154286,131.98,131.95,7.5786]
[1726580929866,6.6154286,131.98,131.94,18.9477]
[1726580930056,6.6154286,131.98,131.95,7.5782]
[1726580930476,16.08671606,131.98,131.94,26.5267]
[1726580930682,6.6154286,131.98,131.95,7.5784]
[1726580931885,6.6154286,131.98,131.94,26.5266]
[1726580931886,14.1923286,131.98,131.94,26.5266]
[1726580932063,7.5778,131.97,131.93,7.5794]
[1726580932760,7.5781,131.96,131.92,7.5801]
[1726580933583,7.70309,131.97,131.93,7.5797]
[1726580933987,6.6154286,131.98,131.93,18.9492]
[1726580934187,14.1923286,131.98,131.94,7.579]
[1726580934685,16.08687883,131.98,131.94,7.579]
[1726580935191,7.5775,131.97,131.93,26.5286]
[1726580937357,6.6154286,131.98,131.93,18.9492]
[1726580937560,6.6154286,131.98,131.95,7.5782]
[1726580938263,14.1923286,131.98,131.94,7.5792]
[1726580938672,0.12549,131.97,131.91,18.9522]
[1726580938876,7.5788,131.95,131.91,26.5326]
[1726580939075,0.25098,131.97,131.93,7.5795]
[1726580939280,7.82888,131.97,131.93,7.5795]
[1726580939668,0.25098,131.97,131.91,18.9522]
[1726580939895,7.5782,131.96,131.92,7.5802]
[1726580940194,7.82868,131.97,131.93,7.5797]
[1726580940362,0.25098,131.97,131.93,7.5797]
[1726580940568,0.25098,131.95,131.88,18.9552]
[1726580940768,2.14609613,131.95,131.88,18.9552]
[1726580940971,7.5794,131.94,131.9,7.5811]
[1726580941565,6.6154286,131.98,131.9,18.9535]
[1726580941785,6.6154286,131.98,131.91,7.5807]
[1726580941786,7.5786,131.95,131.91,7.5807]
[1726580941978,1.89502632,131.94,131.89,18.9539]
[1726580942182,0.25098,131.95,131.9,7.5813]
[1726580942383,20.25098,131.97,131.89,18.9539]
[1726580942588,7.5801,131.93,131.89,26.5355]
[1726580942812,8.32311138,131.92,131.86,18.9583]
[1726580942971,7.5813,131.91,131.87,7.7514222]
[1726580944394,1.89552557,131.9,131.87,0.1684222]
[1726580944599,0.12549,131.91,131.87,0.1684222]
[1726580944600,9.47797123,131.89,131.87,0.1684222]
[1726580945298,7.5821,131.89,131.87,0.1684222]
[1726580945677,9.47849982,131.88,131.87,0.1684222]
[1726580945875,7.5819,131.9,131.87,0.1684222]
[1726580946177,27.70769,131.89,131.87,0.1684222]
[1726580946377,29.47858347,131.88,131.87,0.1684222]
[1726580946578,7.70759,131.89,131.87,0.1684222]
[1726580946807,7.5826,131.88,131.87,0.1684222]
[1726580947100,9.72956469,131.88,131.87,0.1684222]
[1726580947410,7.83358,131.88,131.87,0.1684222]
[1726580947702,7.5826,131.88,131.87,0.1684222]
[1726580948184,7.83358,131.88,131.87,0.1684222]
[1726580948587,7.5822,131.89,131.87,0.1684222]
[1726580949404,1.89602992,131.88,131.87,0.1684222]
[1726580949579,7.70709,131.9,131.87,0.1684222]
[1726580950999,1.89585398,131.89,131.87,0.1684222]
[1726580951218,7.5815,131.9,131.87,19.1257222]
[1726580951781,9.47779937,131.89,131.87,0.1684222]
[1726580952388,0.12549,131.9,131.87,0.1684222]
[1726580952599,7.70689,131.91,131.87,7.7516222]
[1726580952908,6.4279,131.92,131.89,7.5816]
[1726580953585,1.40583728,131.97,131.9,7.5813]
[1726580953586,7.5792,131.94,131.9,7.5813]
[1726580953794,7.5787,131.95,131.9,7.5813]
[1726580954001,7.5797,131.93,131.87,0.1684222]
[1726580954204,7.5797,131.93,131.88,7.5825]
[1726580956083,0.12549,131.94,131.89,18.9545]
[1726580956411,29.5114,131.96,131.92,7.5798]
[1726580956714,6.3132,131.96,131.93,7.5797]
[1726580956886,0.0896286,131.97,131.94,7.5791]
[1726580957223,0.0896286,131.97,131.95,7.5784]
[1726580957501,0.0896286,131.97,131.94,7.5787]
[1726580957919,9.56171867,131.97,131.93,18.9489]
[1726580958210,7.6671286,131.97,131.93,18.9489]
[1726580958506,9.47280628,131.96,131.92,7.5802]
[1726580959505,1.98443674,131.97,131.93,7.5792]
[1726580959710,0.2151186,131.97,131.93,7.5792]
[1726580960500,7.7926186,131.97,131.93,7.5792]
[1726580961003,7.7926186,131.97,131.92,18.9502]
[1726580961004,7.579,131.95,131.91,7.5803]
[1726580961195,7.5781,131.96,131.92,7.5798]
[1726580962904,1.89489724,131.95,131.92,7.5798]
[1726580963321,7.5781,131.96,131.92,7.5798]
[1726580964118,1.89489394,131.95,131.92,7.5798]
[1726580964418,9.47299803,131.96,131.92,7.5798]
[1726580964621,7.5781,131.96,131.92,7.5798]
[1726580965212,1.89489839,131.95,131.92,7.5798]
[1726580965418,7.5781,131.96,131.92,7.5798]
[1726580966121,7.7927186,131.97,131.93,7.5796]
[1726580968115,7.578,131.96,131.93,7.5796]
[1726580968701,7.7927186,131.97,131.93,7.5796]
[1726580970521,7.5781,131.96,131.92,26.5295]
[1726580970828,1.89481006,131.95,131.89,18.9538]
[1726580971009,7.58,131.93,131.89,26.5356]
[1726580971346,1.89527274,131.92,131.89,26.5356]
[1726580971497,7.83238,131.91,131.87,7.7512222]
[1726580971703,7.70689,131.91,131.87,7.7512222]
[1726580972012,15.1359,131.92,131.89,7.5816]
[1726580972905,24.61166795,131.92,131.88,26.5384]
[1726580973115,1.89553776,131.91,131.87,0.1684222]
[1726580973318,7.5819,131.9,131.87,0.1684222]
[1726580973499,1.89580371,131.89,131.87,0.1684222]
[1726580974711,30.0,131.88,131.87,0.1684222]
[1726580975504,30.0,131.88,131.87,7.7516222]
[1726580975813,15.1359,131.92,131.9,7.5811]
[1726580976006,30.0,131.91,131.9,7.5811]
[1726580977930,30.0,131.91,131.89,26.5361]
[1726580978103,30.0,131.91,131.88,7.5824]
[1726580978305,6.2778,131.93,131.88,18.9563]
[1726580978842,13.8577,131.93,131.89,7.5816]
[1726580980627,6.2778,131.93,131.9,7.5814]
[1726580981710,15.75311816,131.93,131.89,7.582]
[1726580981923,13.8578,131.93,131.89,7.582]
[1726580982827,7.5803,131.92,131.89,7.582]
[1726580983630,7.5803,131.92,131.88,26.5387]
[1726580984519,7.5803,131.92,131.89,7.5819]
[1726580985133,13.8577,131.93,131.89,7.5819]
[1726580985924,6.2778,131.93,131.9,7.5812]
[1726580989636,6.2778,131.93,131.91,7.5809]
[1726580989940,6.2778,131.93,131.9,26.5349]
[1726580990152,16.4168,131.95,131.91,18.951]
[1726580990437,23.9957,131.95,131.91,26.5316]
[1726580991228,7.5792,131.94,131.91,26.5316]
[1726580991430,7.5792,131.94,131.91,18.951]
[1726580991632,7.5797,131.93,131.89,26.5369]
[1726580991935,1.89526199,131.92,131.88,7.5823]
[1726580992115,9.47596199,131.92,131.88,7.5823]
[1726580992320,7.5807,131.92,131.88,7.5823]
[1726580992834,1.8954995,131.91,131.87,0.1684222]
[1726580993239,7.5821,131.89,131.87,0.1684222]
[1726580993547,9.47790792,131.89,131.87,0.1684222]
[1726580993858,1.89580792,131.89,131.87,0.1684222]
[1726580994230,37.70709,131.9,131.87,0.1684222]
[1726580995629,0.25098,131.88,131.87,0.1684222]
[1726580995818,27.83358,131.88,131.87,0.1684222]
[1726580996144,81.610464,131.88,131.87,0.1684222]
[1726580996650,81.610464,131.88,131.83,0.2580508]
[1726580996651,7.5849,131.84,131.83,0.2580508]
[1726580996820,7.83588,131.84,131.83,0.2580508]
[1726580997015,37.83588,131.84,131.83,0.2580508]
[1726580997453,30.25098,131.84,131.83,0.2580508]
[1726581000340,30.0,131.84,131.83,0.2580508]
[1726581000643,0.25098,131.85,131.83,0.2580508]
[1726581001147,9.7320642,131.85,131.83,0.2580508]
[1726581001339,7.83588,131.84,131.83,0.2580508]
[1726581001550,57.83588,131.84,131.83,0.2580508]
[1726581001931,73.51648,131.84,131.83,0.2580508]
[1726581002253,97.293364,131.84,131.83,0.2580508]
[1726581002547,97.293364,131.84,131.79,0.2580508]
[1726581002548,7.83818,131.8,131.79,0.2580508]
[1726581002731,59.7356655,131.8,131.79,0.2580508]
[1726581002935,50.25098,131.8,131.79,0.2580508]
[1726581003456,57.83818,131.8,131.79,0.2580508]
[1726581003743,59.73550235,131.8,131.79,0.2580508]
[1726581004624,83.51238635,131.8,131.79,0.2580508]
[1726581005167,98.60138635,131.8,131.79,0.2580508]
[1726581005349,98.60138635,131.8,131.75,0.2580508]
[1726581005350,7.5888,131.78,131.75,0.2580508]
[1726581005554,0.25098,131.77,131.75,0.2580508]
[1726581005862,9.73785121,131.77,131.75,0.2580508]
[1726581006150,0.25098,131.77,131.75,0.2580508]
[1726581006529,2.14885702,131.77,131.75,0.2580508]
[1726581006933,0.25098,131.77,131.75,0.2580508]
[1726581007355,2.14887954,131.77,131.75,0.2580508]
[1726581007532,0.25098,131.77,131.75,0.2580508]
[1726581009066,9.73825512,131.76,131.75,0.2580508]
[1726581009551,9.73825512,131.76,131.72,0.2580508]
[1726581009552,27.84218,131.73,131.72,0.2580508]
[1726581009759,29.74057606,131.73,131.72,0.2580508]
[1726581010556,29.74057606,131.73,131.66,0.3346914]
[1726581010557,7.594,131.69,131.66,0.3346914]
[1726581010757,20.12549,131.72,131.66,0.3346914]
[1726581010758,14.10979,131.7,131.66,0.3346914]
[1726581011052,14.10979,131.7,131.66,7.9297914]
[1726581011259,6.51679,131.7,131.67,7.5944]
[1726581011444,8.4155294,131.7,131.66,0.3346914]
[1726581011963,7.5942,131.68,131.66,0.3346914]
[1726581012263,1.89893973,131.67,131.66,0.3346914]
[1726581012638,7.5947,131.67,131.66,0.3346914]
[1726581013340,7.5947,131.67,131.61,0.3321963]
[1726581013341,20.25098,131.66,131.61,0.3321963]
[1726581013528,7.5974,131.63,131.61,0.3321963]
[1726581014046,7.5976,131.62,131.61,0.3321963]
[1726581014249,13.7963,131.62,131.61,0.3321963]
[1726581014447,13.7963,131.62,131.53,6.4212]
[1726581014448,7.5995,131.59,131.56,0.1643926]
[1726581014649,20.0,131.66,131.53,1.5855926]
[1726581014953,20.0,131.66,131.54,19.37046497]
[1726581014954,7.5982,131.61,131.54,19.37046497]
[1726581015647,7.5977,131.62,131.56,19.37046497]
[1726581015952,18.9904,131.65,131.56,19.37046497]
[1726581016136,7.6,131.58,131.55,23.776884]
[1726581016456,7.6011,131.56,131.54,0.0850104]
[1726581016651,7.6016,131.55,131.54,0.0850104]
[1726581017040,18.9989,131.59,131.54,0.0850104]
[1726581017240,7.6015,131.56,131.54,0.0850104]
[1726581017631,7.6016,131.55,131.54,0.0850104]
[1726581018259,7.6016,131.55,131.52,45.36656818]
[1726581018260,27.6028,131.53,131.52,45.11576818]
[1726581018471,27.6028,131.53,131.52,40.11576818]
[1726581019137,27.6028,131.53,131.52,34.34566818]
[1726581019340,7.6062,131.47,131.41,16.5242]
[1726581019654,7.6062,131.47,131.41,24.1338]
[1726581019965,85.2868,131.53,131.47,7.6062]
[1726581019966,7.6029,131.53,131.47,7.6062]
[1726581020259,7.6026,131.54,131.48,7.6052]
[1726581020566,6.1372,131.55,131.47,19.0146]
[1726581020858,6.1372,131.55,131.49,7.605]
[1726581021036,7.6026,131.54,131.48,23.776884]
[1726581021230,35.48315615,131.58,131.47,19.0146]
[1726581021435,7.6024,131.54,131.48,23.776884]
[1726581021660,1.90064855,131.57,131.48,23.776884]
[1726581021847,7.6011,131.56,131.5,7.6044]
[1726581022232,7.6011,131.56,131.51,7.6039]
[1726581022460,16.51615528,131.58,131.52,7.6032]
[1726581022658,1.9004417,131.58,131.51,19.0085]
[1726581022859,7.6005,131.57,131.52,7.6033]
[1726581023160,6.2807,131.59,131.51,19.0085]
[1726581023161,7.6,131.58,131.53,7.6025]
[1726581023368,13.8801,131.59,131.51,19.0085]
[1726581023546,13.8801,131.59,131.54,7.6021]
[1726581023735,7.6,131.58,131.53,26.6088]
[1726581023938,7.5994,131.59,131.54,7.6022]
[1726581024366,7.5999,131.58,131.53,26.6088]
[1726581024533,7.6011,131.56,131.51,31.380684]
[1726581024738,7.6005,131.57,131.52,7.6033]
[1726581024969,11.78324349,131.6,131.5,19.0109]
[1726581025135,11.78324349,131.6,131.49,54.4343]
[1726581025136,20.12549,131.59,131.49,16.4095]
[1726581025463,1.90069401,131.58,131.49,16.4095]
[1726581025668,31.90873349,131.59,131.49,35.4214]
[1726581025846,7.6017,131.55,131.5,7.6041]
[1726581026375,7.6017,131.55,131.5,7.6044]
[1726581026545,7.601,131.57,131.5,23.776884]
[1726581026862,7.601,131.57,131.51,19.0092]
[1726581027051,11.32423239,131.62,131.52,23.776884]
[1726581027247,37.33254349,131.63,131.53,19.0062]
[1726581027452,13.17998958,131.62,131.53,19.0062]
[1726581027761,13.17998958,131.62,131.53,26.6085]
[1726581027945,7.6005,131.57,131.53,19.0062]
[1726581028145,7.6,131.58,131.53,26.609]
[1726581028358,20.19838035,131.62,131.53,26.609]
[1726581028552,21.9002467,131.61,131.53,26.609]
[1726581028762,7.6005,131.57,131.53,19.0062]
[1726581029069,7.6016,131.55,131.5,26.6146]
[1726581029362,0.25098,131.6,131.49,24.0145]
[1726581029363,19.0005,131.58,131.49,24.0145]
[1726581029568,7.6031,131.53,131.49,16.4095]
[1726581029757,7.6031,131.53,131.48,7.6056]
[1726581030070,7.6022,131.55,131.49,7.605]
[1726581030454,1.90078011,131.54,131.47,19.0149]
[1726581030770,7.6044,131.51,131.47,19.0149]
[1726581031158,7.605,131.5,131.46,0.5137723]
[1726581032068,1.90136807,131.53,131.46,0.5137723]
[1726581032252,7.6052,131.49,131.46,0.5137723]
[1726581032568,7.6049,131.5,131.46,0.5137723]
[1726581032871,7.6055,131.49,131.46,0.5137723]
[1726581033245,7.6062,131.47,131.46,0.5137723]
[1726581033749,7.6055,131.49,131.46,0.5137723]
[1726581033944,7.6046,131.5,131.46,0.5137723]
[1726581034174,7.6039,131.52,131.46,8.1204723]
[1726581034467,7.6034,131.52,131.47,7.6058]
[1726581034845,6.2392,131.55,131.46,0.5137723]
[1726581035046,6.2392,131.55,131.47,19.0149]
[1726581035245,7.6029,131.53,131.48,7.6052]
[1726581035652,6.2392,131.55,131.49,9.12287852]
[1726581035653,7.6023,131.54,131.49,9.12287852]
[1726581035849,6.2392,131.55,131.47,19.0149]
[1726581036466,7.6032,131.53,131.47,19.0149]
[1726581036876,7.6032,131.53,131.47,26.621]
[1726581037057,7.6032,131.53,131.48,7.6056]
[1726581037469,7.6032,131.53,131.47,19.0149]
[1726581037470,7.6034,131.52,131.47,26.621]
[1726581037775,7.6044,131.51,131.46,8.1203723]
[1726581037969,9.50582013,131.5,131.46,0.5137723]
[1726581038183,7.6051,131.49,131.46,0.5137723]
[1726581038546,9.50744156,131.48,131.46,0.5137723]
[1726581038743,7.6062,131.47,131.46,0.5137723]
[1726581038944,7.6058,131.48,131.46,0.5137723]
[1726581039148,7.6062,131.47,131.46,0.5137723]
[1726581040273,7.6058,131.48,131.46,0.5137723]
[1726581040573,7.6062,131.47,131.46,0.5137723]
[1726581040745,1.90187109,131.5,131.46,0.5137723]
[1726581040949,7.6053,131.49,131.46,0.5137723]
[1726581041385,11.28060087,131.53,131.46,0.5137723]
[1726581041675,1.90118842,131.52,131.46,0.5137723]
[1726581041855,6.2392,131.55,131.47,19.015]
[1726581042370,7.6032,131.53,131.48,7.6055]
[1726581042754,1.9010269,131.52,131.47,19.015]
[1726581042975,1.90121725,131.51,131.47,19.015]
[1726581043286,7.6039,131.51,131.47,26.6212]
[1726581043582,7.6035,131.52,131.47,26.6212]
[1726581044076,7.604,131.51,131.46,0.5137723]
[1726581044377,7.6046,131.5,131.46,8.1204723]
[1726581044683,7.6046,131.5,131.46,0.5137723]
[1726581044859,7.6046,131.5,131.46,8.1204723]
[1726581045268,7.6041,131.51,131.46,8.1204723]
[1726581046066,7.6041,131.51,131.47,7.6061]
[1726581046577,7.6045,131.5,131.46,27.1372723]
[1726581047279,7.604,131.51,131.46,27.1372723]
[1726581047587,7.6033,131.53,131.48,26.6195]
[1726581047882,7.6033,131.53,131.48,26.1195]
[1726581048358,7.6034,131.52,131.48,26.1195]
[1726581048559,9.50444487,131.52,131.48,18.5139]
[1726581048788,7.604,131.51,131.47,7.6062]
[1726581049282,7.6037,131.52,131.47,7.6062]
[1726581049460,7.6029,131.53,131.47,19.0154]
[1726581049662,7.6037,131.52,131.48,7.6056]
[1726581050091,7.6041,131.51,131.47,26.6215]
[1726581050264,7.6045,131.5,131.46,8.1205723]
[1726581050466,7.6045,131.51,131.46,8.1205723]
[1726581050677,7.6047,131.5,131.46,8.1205723]
[1726581050879,1.90147368,131.5,131.46,0.5137723]
[1726581051085,19.25868,131.53,131.46,0.5137723]
[1726581051271,1.9015471,131.52,131.46,0.5137723]
[1726581051462,19.25868,131.53,131.46,0.5137723]
[1726581051789,7.6047,131.5,131.46,27.1365723]
[1726581051961,7.6047,131.5,131.46,19.5301723]
[1726581052163,7.604,131.51,131.46,19.5301723]
[1726581052376,7.604,131.51,131.47,7.6062]
[1726581052783,7.604,131.51,131.46,27.1368723]
[1726581053284,7.604,131.51,131.47,7.6062]
[1726581053491,7.6034,131.52,131.48,7.6056]
[1726581053785,7.6034,131.52,131.48,26.6198]
[1726581054087,7.6037,131.52,131.48,26.6198]
[1726581054290,7.603,131.53,131.49,7.6051]
[1726581054468,1.90098138,131.52,131.48,26.6197]
[1726581054781,7.6024,131.54,131.48,19.0142]
[1726581054994,6.2392,131.55,131.5,19.0107]
[1726581055161,7.6022,131.54,131.5,26.6148]
[1726581055363,7.6013,131.56,131.5,19.0107]
[1726581055583,7.6005,131.57,131.52,7.6028]
[1726581055892,7.6007,131.57,131.52,7.6028]
[1726581056068,7.6007,131.57,131.53,7.6027]
[1726581056393,14.2159,131.58,131.53,7.6027]
[1726581056564,7.6005,131.57,131.53,7.6027]
[1726581056767,7.6005,131.57,131.52,26.6115]
[1726581056980,11.46862256,131.57,131.49,19.0117]
[1726581057180,22.74847774,131.57,131.49,19.0117]
[1726581057363,7.6028,131.54,131.49,26.6167]
[1726581057562,7.6028,131.54,131.5,7.6045]
[1726581057971,7.6028,131.54,131.49,26.6166]
[1726581058173,7.6018,131.55,131.5,7.6044]
[1726581058370,9.50258087,131.55,131.5,7.6044]
[1726581058689,20.0,131.56,131.51,7.6038]
[1726581058885,1.90081492,131.55,131.51,7.6038]
[1726581059083,7.6028,131.53,131.49,26.6167]
[1726581059288,9.50447103,131.52,131.47,15.7497]
[1726581059588,7.6028,131.53,131.49,7.6051]
[1726581060082,7.6028,131.53,131.48,19.014]
[1726581060083,20.12549,131.57,131.5,7.6043]
[1726581060378,0.12549,131.56,131.5,7.6043]
[1726581060589,7.6014,131.56,131.5,19.0108]
[1726581060771,9.50235956,131.55,131.5,19.0108]
[1726581060977,20.0,131.57,131.5,19.0108]
[1726581061170,7.6021,131.55,131.5,26.6149]
[1726581061364,39.0015,131.57,131.47,34.7642]
[1726581061584,20.0,131.55,131.47,42.3703]
[1726581061898,7.6046,131.5,131.47,19.0145]
[1726581062183,7.6041,131.51,131.47,26.6207]
[1726581062390,7.6041,131.51,131.47,19.0145]
[1726581062598,1.90136923,131.5,131.46,0.5137723]
[1726581062797,7.6045,131.51,131.46,0.5137723]
[1726581062963,7.6045,131.51,131.46,8.1205723]
[1726581063166,7.6045,131.51,131.46,19.5303723]
[1726581063374,9.50602378,131.5,131.46,27.1370723]
[1726581063576,7.6051,131.49,131.46,0.5137723]
[1726581063988,7.6046,131.5,131.46,8.1205723]
[1726581064666,7.6041,131.51,131.46,8.1205723]
[1726581064968,7.6041,131.51,131.47,7.6062]
[1726581065163,27.6034,131.52,131.48,26.6193]
[1726581065975,9.50542064,131.51,131.46,8.1200723]
[1726581066174,7.6046,131.5,131.46,0.5137723]
[1726581066581,20.0,131.53,131.47,7.6058]
[1726581066898,17.93135518,131.56,131.47,23.776884]
[1726581067188,7.6011,131.56,131.51,26.6133]
[1726581067366,7.6017,131.55,131.51,19.0095]
[1726581067896,7.601,131.57,131.51,19.0095]
[1726581068071,14.0846,131.59,131.53,19.0064]
[1726581068399,8.38525795,131.59,131.53,19.0064]
[1726581068770,8.38525795,131.59,131.51,15.4497]
[1726581068990,7.6017,131.55,131.51,15.4497]
[1726581069489,7.6029,131.53,131.5,19.0104]
[1726581070498,7.6023,131.54,131.5,26.6149]
[1726581070671,20.0,131.57,131.52,19.0077]
[1726581070992,27.6005,131.57,131.53,7.6027]
[1726581071192,8.38554932,131.59,131.53,7.6027]
[1726581071700,14.0845,131.59,131.55,7.6015]
[1726581071998,14.0845,131.59,131.55,7.6014]
[1726581072291,7.5989,131.6,131.56,7.6009]
[1726581072972,7.5983,131.61,131.56,7.6009]
[1726581073296,1.90008724,131.6,131.55,7.6015]
[1726581073485,7.5988,131.6,131.55,7.6015]
[1726581073871,7.5995,131.59,131.55,7.6015]
[1726581074703,7.6005,131.57,131.54,19.0051]
[1726581075080,7.6011,131.56,131.52,7.6033]
[1726581075895,7.6006,131.57,131.53,7.6026]
[1726581076107,18.9975,131.6,131.51,19.009]
[1726581076425,7.6012,131.56,131.52,7.6033]
[1726581076701,7.6012,131.56,131.51,19.009]
[1726581076994,7.6012,131.56,131.52,7.6029]
[1726581078098,7.6001,131.58,131.54,7.602]
[1726581078910,7.6001,131.58,131.54,7.102]
[1726581079477,7.6005,131.57,131.53,26.609]
[1726581079899,7.6001,131.58,131.54,7.6022]
[1726581080898,1.90019065,131.57,131.53,19.0064]
[1726581081097,7.6011,131.56,131.52,7.603]
[1726581081299,7.6017,131.55,131.51,7.8514014]
[1726581081497,20.0,131.58,131.52,19.0083]
[1726581081998,0.25098,131.6,131.52,19.0083]
[1726581082217,2.15131158,131.6,131.52,19.0083]
[1726581082424,7.6005,131.57,131.53,7.6024]